[Event "Late-Titled-Tuesday-Blitz-June-25-2024"]
[Site "Chess.com"]
[Date "2024.06.25"]
[Round "10"]
[White "giomar27"]
[Black "Onthequiet"]
[Result "0-1"]
[WhiteElo "2419"]
[BlackElo "2317"]
[TimeControl "180+1"]
[EndTime "15:51:17 PDT"]
[Termination "Onthequiet won by checkmate"]

1. d4 {[%clk 0:03:00.9]} 1... d5 {[%clk 0:02:58.8]} 2. Nc3 {[%clk 0:03:01.4]}
2... Nf6 {[%clk 0:02:58.2]} 3. Bf4 {[%clk 0:03:01.9]} 3... c6 {[%clk 0:02:57.9]}
4. e3 {[%clk 0:03:02.1]} 4... Bf5 {[%clk 0:02:58.2]} 5. f3 {[%clk 0:03:02.5]}
5... h6 {[%clk 0:02:57.8]} 6. g4 {[%clk 0:03:02.9]} 6... Bh7 {[%clk 0:02:57.8]}
7. Bd3 {[%clk 0:03:03.4]} 7... Bxd3 {[%clk 0:02:57.3]} 8. Qxd3 {[%clk
0:03:04.2]} 8... e6 {[%clk 0:02:56.9]} 9. Nge2 {[%clk 0:03:04.2]} 9... Bd6
{[%clk 0:02:57.3]} 10. O-O {[%clk 0:03:04.2]} 10... O-O {[%clk 0:02:56.1]} 11.
h4 {[%clk 0:03:03.7]} 11... Bxf4 {[%clk 0:02:55.6]} 12. Nxf4 {[%clk 0:03:04.1]}
12... Nh7 {[%clk 0:02:55.7]} 13. Ng2 {[%clk 0:03:03.6]} 13... Nd7 {[%clk
0:02:54.9]} 14. f4 {[%clk 0:03:03.4]} 14... f5 {[%clk 0:02:52.5]} 15. g5 {[%clk
0:03:03.1]} 15... c5 {[%clk 0:02:40.1]} 16. Ne2 {[%clk 0:03:01.4]} 16... c4
{[%clk 0:02:39.5]} 17. Qd2 {[%clk 0:03:01.4]} 17... b5 {[%clk 0:02:38.2]} 18. c3
{[%clk 0:03:01.8]} 18... a5 {[%clk 0:02:35]} 19. Kf2 {[%clk 0:03:01.6]} 19... h5
{[%clk 0:02:22.9]} 20. g6 {[%clk 0:02:53.5]} 20... Nhf6 {[%clk 0:02:22.4]} 21.
Ng3 {[%clk 0:02:53.9]} 21... Qe8 {[%clk 0:02:17.8]} 22. Qe2 {[%clk 0:02:53.8]}
22... Qxg6 {[%clk 0:02:16.4]} 23. Rg1 {[%clk 0:02:53.4]} 23... Ng4+ {[%clk
0:02:16]} 24. Ke1 {[%clk 0:02:53.6]} 24... Ndf6 {[%clk 0:02:15.8]} 25. Kd1
{[%clk 0:02:52.9]} 25... b4 {[%clk 0:02:14.8]} 26. Kc2 {[%clk 0:02:53]} 26...
Rfb8 {[%clk 0:02:13.6]} 27. Ne1 {[%clk 0:02:52.6]} 27... Ne8 {[%clk 0:02:08.3]}
28. Nf3 {[%clk 0:02:52.9]} 28... Nd6 {[%clk 0:02:06.5]} 29. Ne5 {[%clk 0:02:53]}
29... Qe8 {[%clk 0:02:03.5]} 30. Rg2 {[%clk 0:02:42.3]} 30... g6 {[%clk
0:02:02.7]} 31. Rag1 {[%clk 0:02:42.8]} 31... bxc3 {[%clk 0:01:57.7]} 32. bxc3
{[%clk 0:02:42.5]} 32... Qa4+ {[%clk 0:01:49.1]} 33. Kc1 {[%clk 0:02:42.7]}
33... Qa3+ {[%clk 0:01:47.8]} 34. Kd1 {[%clk 0:02:42.9]} 34... Rb1+ {[%clk
0:01:45.5]} 35. Kd2 {[%clk 0:02:42.5]} 35... Qxa2# {[%clk 0:01:41.4]} 0-1

[Event "Late-Titled-Tuesday-Blitz-June-25-2024"]
[Site "Chess.com"]
[Date "2024.06.25"]
[Round "10"]
[White "MarkusRagger"]
[Black "Bilan_Danila"]
[Result "1-0"]
[WhiteElo "2795"]
[BlackElo "2622"]
[TimeControl "180+1"]
[EndTime "15:51:47 PDT"]
[Termination "MarkusRagger won by resignation"]

1. d4 {[%clk 0:03:00.9]} 1... d5 {[%clk 0:02:55.8]} 2. c4 {[%clk 0:02:52.8]}
2... c6 {[%clk 0:02:55.6]} 3. cxd5 {[%clk 0:02:52]} 3... cxd5 {[%clk 0:02:55.8]}
4. Bf4 {[%clk 0:02:51.5]} 4... Nf6 {[%clk 0:02:56]} 5. Nc3 {[%clk 0:02:50.6]}
5... Nc6 {[%clk 0:02:56.4]} 6. e3 {[%clk 0:02:50.9]} 6... e6 {[%clk 0:02:51.3]}
7. Bd3 {[%clk 0:02:49.1]} 7... Bd6 {[%clk 0:02:51.3]} 8. Bxd6 {[%clk 0:02:48.3]}
8... Qxd6 {[%clk 0:02:52.2]} 9. f4 {[%clk 0:02:48.5]} 9... Bd7 {[%clk
0:02:47.4]} 10. a3 {[%clk 0:02:45.9]} 10... Rc8 {[%clk 0:02:45.8]} 11. Nf3
{[%clk 0:02:45.3]} 11... Na5 {[%clk 0:02:42.9]} 12. O-O {[%clk 0:02:39.6]} 12...
Nc4 {[%clk 0:02:42.4]} 13. Qe2 {[%clk 0:02:38]} 13... b5 {[%clk 0:02:33.4]} 14.
Ne5 {[%clk 0:02:37]} 14... O-O {[%clk 0:02:28.7]} 15. Rf3 {[%clk 0:02:28.8]}
15... g6 {[%clk 0:02:00.1]} 16. g4 {[%clk 0:02:25.2]} 16... Ne4 {[%clk
0:01:27.6]} 17. Bxe4 {[%clk 0:02:13.7]} 17... dxe4 {[%clk 0:01:24.8]} 18. Nxe4
{[%clk 0:02:12.9]} 18... Be8 {[%clk 0:01:01.5]} 1-0

[Event "Late-Titled-Tuesday-Blitz-June-25-2024"]
[Site "Chess.com"]
[Date "2024.06.25"]
[Round "10"]
[White "maximnovik"]
[Black "chesspingvin1995"]
[Result "1-0"]
[WhiteElo "2519"]
[BlackElo "2273"]
[TimeControl "180+1"]
[EndTime "15:52:19 PDT"]
[Termination "maximnovik won by resignation"]

1. e4 {[%clk 0:03:00.5]} 1... e6 {[%clk 0:02:57.3]} 2. d4 {[%clk 0:02:59.7]}
2... d5 {[%clk 0:02:57.7]} 3. e5 {[%clk 0:03:00.6]} 3... c5 {[%clk 0:02:57.8]}
4. c3 {[%clk 0:03:01.1]} 4... Nc6 {[%clk 0:02:58.1]} 5. Nf3 {[%clk 0:03:02]}
5... Bd7 {[%clk 0:02:58]} 6. Be2 {[%clk 0:03:01.7]} 6... f6 {[%clk 0:02:52.1]}
7. O-O {[%clk 0:03:00.8]} 7... fxe5 {[%clk 0:02:50.2]} 8. dxe5 {[%clk
0:03:00.8]} 8... Qc7 {[%clk 0:02:50]} 9. Bf4 {[%clk 0:03:00]} 9... O-O-O {[%clk
0:02:48.7]} 10. Re1 {[%clk 0:02:59.4]} 10... c4 {[%clk 0:02:48.8]} 11. b3 {[%clk
0:02:53.4]} 11... cxb3 {[%clk 0:02:43.8]} 12. axb3 {[%clk 0:02:53.1]} 12... Nge7
{[%clk 0:02:43.1]} 13. Nbd2 {[%clk 0:02:50.2]} 13... Ng6 {[%clk 0:02:43]} 14.
Bg3 {[%clk 0:02:50.3]} 14... Be7 {[%clk 0:02:15.2]} 15. b4 {[%clk 0:02:49.8]}
15... b6 {[%clk 0:02:06.6]} 16. Nb3 {[%clk 0:02:45.6]} 16... h5 {[%clk
0:02:01.9]} 17. h3 {[%clk 0:02:44.6]} 17... h4 {[%clk 0:02:01]} 18. Bh2 {[%clk
0:02:44.1]} 18... Rdf8 {[%clk 0:01:44.1]} 19. Qd2 {[%clk 0:02:43.2]} 19... Kb8
{[%clk 0:01:43.2]} 20. Bd3 {[%clk 0:02:42.6]} 20... Be8 {[%clk 0:01:38.6]} 21.
b5 {[%clk 0:02:41.2]} 21... Nd8 {[%clk 0:01:37]} 22. Nbd4 {[%clk 0:02:42.1]}
22... Rh5 {[%clk 0:01:24.3]} 23. Ra4 {[%clk 0:02:40.3]} 23... Bc5 {[%clk
0:01:08]} 24. Rea1 {[%clk 0:02:39.6]} 24... Bxd4 {[%clk 0:01:02.4]} 25. cxd4
{[%clk 0:02:39.1]} 25... Rf7 {[%clk 0:00:54.6]} 26. Bxg6 {[%clk 0:02:31.2]}
26... Rxf3 {[%clk 0:00:54.1]} 27. Bxe8 {[%clk 0:02:26.2]} 1-0

[Event "Late-Titled-Tuesday-Blitz-June-25-2024"]
[Site "Chess.com"]
[Date "2024.06.25"]
[Round "10"]
[White "GoltsevDmitry2000"]
[Black "IndianSchoolOfSuffering"]
[Result "1-0"]
[WhiteElo "2706"]
[BlackElo "2525"]
[TimeControl "180+1"]
[EndTime "15:53:02 PDT"]
[Termination "GoltsevDmitry2000 won by resignation"]

1. e4 {[%clk 0:02:11.1]} 1... e5 {[%clk 0:02:56.7]} 2. Nf3 {[%clk 0:02:10.5]}
2... Nc6 {[%clk 0:02:56.7]} 3. Bb5 {[%clk 0:02:10.4]} 3... a6 {[%clk 0:02:56.2]}
4. Ba4 {[%clk 0:02:10.4]} 4... Nf6 {[%clk 0:02:56.4]} 5. O-O {[%clk 0:02:09.9]}
5... b5 {[%clk 0:02:56.3]} 6. Bb3 {[%clk 0:02:09.7]} 6... Bc5 {[%clk 0:02:56.4]}
7. Nxe5 {[%clk 0:02:09.2]} 7... Nxe5 {[%clk 0:02:53.2]} 8. d4 {[%clk 0:02:09.7]}
8... Bxd4 {[%clk 0:02:52.3]} 9. Qxd4 {[%clk 0:02:10.6]} 9... d6 {[%clk
0:02:52.5]} 10. c3 {[%clk 0:02:09.2]} 10... O-O {[%clk 0:02:48.6]} 11. Bg5
{[%clk 0:02:09.5]} 11... h6 {[%clk 0:02:46.9]} 12. Bh4 {[%clk 0:02:09.3]} 12...
c5 {[%clk 0:02:44.2]} 13. Qe3 {[%clk 0:02:07.9]} 13... Bb7 {[%clk 0:02:30.1]}
14. Nd2 {[%clk 0:02:00.4]} 14... Re8 {[%clk 0:02:26]} 15. h3 {[%clk 0:01:51.7]}
15... Ng6 {[%clk 0:02:23.9]} 16. Bxf6 {[%clk 0:01:45.8]} 16... Qxf6 {[%clk
0:02:24.8]} 17. f4 {[%clk 0:01:45.2]} 17... Rad8 {[%clk 0:02:06.1]} 18. Rae1
{[%clk 0:01:38.7]} 18... Qe7 {[%clk 0:01:47.3]} 19. Qg3 {[%clk 0:01:37.4]} 19...
d5 {[%clk 0:01:34.1]} 20. e5 {[%clk 0:01:30.9]} 20... d4 {[%clk 0:01:17.3]} 21.
f5 {[%clk 0:01:01.7]} 21... Qh4 {[%clk 0:01:11.7]} 22. Bxf7+ {[%clk 0:00:58]}
22... Kxf7 {[%clk 0:01:09.4]} 23. fxg6+ {[%clk 0:00:57.8]} 1-0

[Event "Late-Titled-Tuesday-Blitz-June-25-2024"]
[Site "Chess.com"]
[Date "2024.06.25"]
[Round "10"]
[White "PNEPaul"]
[Black "UnTucopalaTimba"]
[Result "0-1"]
[WhiteElo "1946"]
[BlackElo "2122"]
[TimeControl "180+1"]
[EndTime "15:53:07 PDT"]
[Termination "UnTucopalaTimba won by resignation"]

1. e4 {[%clk 0:03:00.9]} 1... c6 {[%clk 0:02:59.5]} 2. d4 {[%clk 0:02:59.6]}
2... d5 {[%clk 0:02:59.6]} 3. Nc3 {[%clk 0:02:58.8]} 3... dxe4 {[%clk
0:02:58.8]} 4. f3 {[%clk 0:02:58.9]} 4... exf3 {[%clk 0:02:57.2]} 5. Nxf3 {[%clk
0:02:58.9]} 5... Nf6 {[%clk 0:02:56.9]} 6. Bc4 {[%clk 0:02:58.3]} 6... e6 {[%clk
0:02:48.7]} 7. O-O {[%clk 0:02:56.7]} 7... Be7 {[%clk 0:02:48]} 8. Ne5 {[%clk
0:02:55.3]} 8... O-O {[%clk 0:02:42.1]} 9. Be3 {[%clk 0:02:51.2]} 9... Qc7
{[%clk 0:02:33]} 10. Qe2 {[%clk 0:02:46.5]} 10... c5 {[%clk 0:02:26.2]} 11. Kh1
{[%clk 0:02:38.5]} 11... Nc6 {[%clk 0:02:22.1]} 12. Nxc6 {[%clk 0:02:33]} 12...
Qxc6 {[%clk 0:02:21.4]} 13. dxc5 {[%clk 0:02:08.6]} 13... Bxc5 {[%clk
0:02:13.1]} 14. Bxc5 {[%clk 0:02:02.6]} 14... Qxc5 {[%clk 0:02:12.6]} 15. Rxf6
{[%clk 0:02:01]} 15... gxf6 {[%clk 0:02:10.5]} 16. Ne4 {[%clk 0:01:50]} 16...
Qe5 {[%clk 0:02:03.5]} 17. Qg4+ {[%clk 0:01:41.8]} 17... Kh8 {[%clk 0:02:02.6]}
18. Qf3 {[%clk 0:01:36.3]} 18... f5 {[%clk 0:01:56.7]} 19. Ng3 {[%clk 0:01:36]}
19... Qxb2 {[%clk 0:01:52.7]} 20. Rf1 {[%clk 0:01:26.9]} 20... Bd7 {[%clk
0:01:49.7]} 21. Bd3 {[%clk 0:01:24]} 21... Bc6 {[%clk 0:01:48.7]} 22. Qh5 {[%clk
0:01:22]} 22... Qg7 {[%clk 0:01:28.1]} 23. Rf4 {[%clk 0:01:09.1]} 23... Rad8
{[%clk 0:01:22.6]} 24. Rh4 {[%clk 0:00:54.3]} 24... Rxd3 {[%clk 0:01:17.7]} 25.
cxd3 {[%clk 0:00:51.5]} 25... Qa1+ {[%clk 0:01:16.3]} 0-1

[Event "Late-Titled-Tuesday-Blitz-June-25-2024"]
[Site "Chess.com"]
[Date "2024.06.25"]
[Round "10"]
[White "DucksParadise"]
[Black "Pachonpower"]
[Result "1-0"]
[WhiteElo "2592"]
[BlackElo "2466"]
[TimeControl "180+1"]
[EndTime "15:53:16 PDT"]
[Termination "DucksParadise won by resignation"]

1. b3 {[%clk 0:03:00.9]} 1... Nf6 {[%clk 0:02:59.4]} 2. Bb2 {[%clk 0:03:00.3]}
2... g6 {[%clk 0:03:00.3]} 3. Nf3 {[%clk 0:02:59.5]} 3... Bg7 {[%clk 0:03:00.8]}
4. g3 {[%clk 0:02:59.8]} 4... b6 {[%clk 0:03:01]} 5. Bg2 {[%clk 0:02:58.7]} 5...
Bb7 {[%clk 0:03:01.4]} 6. O-O {[%clk 0:02:59]} 6... O-O {[%clk 0:03:01.8]} 7. c4
{[%clk 0:02:59]} 7... d6 {[%clk 0:03:02.3]} 8. d4 {[%clk 0:02:54.8]} 8... Nbd7
{[%clk 0:03:02.5]} 9. d5 {[%clk 0:02:52.9]} 9... Re8 {[%clk 0:02:59]} 10. Qc2
{[%clk 0:02:51.1]} 10... e5 {[%clk 0:02:58.9]} 11. dxe6 {[%clk 0:02:47.8]} 11...
fxe6 {[%clk 0:02:59.8]} 12. Nc3 {[%clk 0:02:43]} 12... e5 {[%clk 0:02:58.8]} 13.
Rad1 {[%clk 0:02:41]} 13... Nc5 {[%clk 0:02:57.5]} 14. Ng5 {[%clk 0:02:36.1]}
14... Bxg2 {[%clk 0:02:56.9]} 15. Kxg2 {[%clk 0:02:37]} 15... Qd7 {[%clk
0:02:54.4]} 16. Nd5 {[%clk 0:02:22.2]} 16... Nxd5 {[%clk 0:02:49.4]} 17. cxd5
{[%clk 0:02:21.8]} 17... Bf6 {[%clk 0:02:44.1]} 18. Ne4 {[%clk 0:02:17]} 18...
Nxe4 {[%clk 0:02:44]} 19. Qxe4 {[%clk 0:02:17.9]} 19... Rac8 {[%clk 0:02:44.4]}
20. Rc1 {[%clk 0:02:11.7]} 20... Re7 {[%clk 0:02:33.2]} 21. Rc6 {[%clk
0:02:10.5]} 21... Rf7 {[%clk 0:02:31.9]} 22. Rfc1 {[%clk 0:02:06.7]} 22... Bg7
{[%clk 0:02:28.6]} 23. f3 {[%clk 0:01:59.1]} 23... Bf8 {[%clk 0:02:20.9]} 24. h3
{[%clk 0:01:48.4]} 24... Bh6 {[%clk 0:02:03.3]} 25. R1c2 {[%clk 0:01:47.2]}
25... Bf8 {[%clk 0:02:03]} 26. Qg4 {[%clk 0:01:46.7]} 26... Rf5 {[%clk 0:01:53]}
27. e4 {[%clk 0:01:45.1]} 27... Rf7 {[%clk 0:01:53.4]} 28. Qxd7 {[%clk
0:01:42.9]} 28... Rxd7 {[%clk 0:01:54.3]} 29. b4 {[%clk 0:01:41.2]} 29... Kf7
{[%clk 0:01:54.1]} 30. b5 {[%clk 0:01:40.8]} 30... Ke8 {[%clk 0:01:54.6]} 31. f4
{[%clk 0:01:38.3]} 31... exf4 {[%clk 0:01:53.6]} 32. gxf4 {[%clk 0:01:39.2]}
32... Kd8 {[%clk 0:01:53.3]} 33. Kf3 {[%clk 0:01:32.2]} 33... Bg7 {[%clk
0:01:49]} 34. Bxg7 {[%clk 0:01:26.1]} 34... Rxg7 {[%clk 0:01:49.9]} 35. e5
{[%clk 0:01:26.3]} 35... dxe5 {[%clk 0:01:48.6]} 36. fxe5 {[%clk 0:01:27.2]}
36... Re7 {[%clk 0:01:48.5]} 37. e6 {[%clk 0:01:25.2]} 37... Rb8 {[%clk
0:01:45.2]} 38. Ke4 {[%clk 0:01:24.2]} 38... Ra8 {[%clk 0:01:41.3]} 39. Rf2
{[%clk 0:01:22.1]} 39... a6 {[%clk 0:01:39]} 40. Rf8+ {[%clk 0:01:20.2]} 40...
Re8 {[%clk 0:01:39.6]} 41. Rxe8+ {[%clk 0:01:17.4]} 41... Kxe8 {[%clk
0:01:40.5]} 42. Rxc7 {[%clk 0:01:12.7]} 42... axb5 {[%clk 0:01:36.8]} 43. d6
{[%clk 0:01:10.1]} 1-0

[Event "Late-Titled-Tuesday-Blitz-June-25-2024"]
[Site "Chess.com"]
[Date "2024.06.25"]
[Round "10"]
[White "FredddieCroderg"]
[Black "1g60-1"]
[Result "1-0"]
[WhiteElo "2354"]
[BlackElo "2450"]
[TimeControl "180+1"]
[EndTime "15:53:32 PDT"]
[Termination "FredddieCroderg won by resignation"]

1. e4 {[%clk 0:03:00.9]} 1... e6 {[%clk 0:02:58.3]} 2. d4 {[%clk 0:03:00.3]}
2... d5 {[%clk 0:02:58.1]} 3. exd5 {[%clk 0:02:59.9]} 3... exd5 {[%clk
0:02:57.9]} 4. Bd3 {[%clk 0:02:59.8]} 4... Nc6 {[%clk 0:02:55]} 5. c3 {[%clk
0:02:57.7]} 5... Bd6 {[%clk 0:02:53.2]} 6. Nf3 {[%clk 0:02:57.6]} 6... Nge7
{[%clk 0:02:53.1]} 7. O-O {[%clk 0:02:57.8]} 7... Bg4 {[%clk 0:02:53.3]} 8. Re1
{[%clk 0:02:53.6]} 8... O-O {[%clk 0:02:52.7]} 9. Nbd2 {[%clk 0:02:51.9]} 9...
Bf5 {[%clk 0:02:46.2]} 10. Nf1 {[%clk 0:02:51.2]} 10... Bxd3 {[%clk 0:02:45.5]}
11. Qxd3 {[%clk 0:02:50.2]} 11... Qd7 {[%clk 0:02:42.7]} 12. Ng3 {[%clk
0:02:50]} 12... Bxg3 {[%clk 0:02:37.5]} 13. hxg3 {[%clk 0:02:49.2]} 13... Qf5
{[%clk 0:02:34.4]} 14. Qxf5 {[%clk 0:02:47.6]} 14... Nxf5 {[%clk 0:02:35.3]} 15.
Bf4 {[%clk 0:02:46.1]} 15... Rac8 {[%clk 0:02:33.4]} 16. Ne5 {[%clk 0:02:45.2]}
16... Nxe5 {[%clk 0:02:32.3]} 17. Rxe5 {[%clk 0:02:43.9]} 17... Nd6 {[%clk
0:02:27.5]} 18. Re7 {[%clk 0:02:41.2]} 18... Ne8 {[%clk 0:02:04.9]} 19. Rae1
{[%clk 0:02:35.7]} 19... a5 {[%clk 0:01:56.4]} 20. R1e5 {[%clk 0:02:32.6]} 20...
c5 {[%clk 0:01:53.9]} 21. Rxb7 {[%clk 0:02:28.9]} 21... cxd4 {[%clk 0:01:53.7]}
22. cxd4 {[%clk 0:02:28.5]} 22... Nd6 {[%clk 0:01:50.1]} 23. Ra7 {[%clk
0:02:21.7]} 23... Nb5 {[%clk 0:01:47.5]} 24. Rxa5 {[%clk 0:02:17.3]} 24... Nxd4
{[%clk 0:01:47.9]} 25. Raxd5 {[%clk 0:02:12.3]} 25... Ne6 {[%clk 0:01:42.4]} 26.
b4 {[%clk 0:02:03.6]} 26... Rc2 {[%clk 0:01:35.7]} 27. a4 {[%clk 0:02:00]} 27...
h6 {[%clk 0:01:33]} 28. b5 {[%clk 0:01:58.4]} 28... Ra2 {[%clk 0:01:31.1]} 29.
Re4 {[%clk 0:01:54]} 29... Rc8 {[%clk 0:01:25.8]} 30. Be3 {[%clk 0:01:50.7]}
30... Ng5 {[%clk 0:00:59.3]} 31. Rb4 {[%clk 0:01:47.2]} 31... Rcc2 {[%clk
0:00:47.6]} 32. b6 {[%clk 0:01:41.9]} 32... Re2 {[%clk 0:00:44.7]} 33. b7 {[%clk
0:01:33.7]} 33... Re1+ {[%clk 0:00:41.3]} 34. Kh2 {[%clk 0:01:33.7]} 34... Raa1
{[%clk 0:00:42]} 35. b8=Q+ {[%clk 0:01:31.2]} 35... Kh7 {[%clk 0:00:42]} 36. g4
{[%clk 0:01:25.9]} 36... Ne4 {[%clk 0:00:40.8]} 37. Rxe4 {[%clk 0:01:23.3]} 1-0

[Event "Late-Titled-Tuesday-Blitz-June-25-2024"]
[Site "Chess.com"]
[Date "2024.06.25"]
[Round "10"]
[White "Kaustubh_Kodihalli"]
[Black "VirtualCoach"]
[Result "1-0"]
[WhiteElo "2461"]
[BlackElo "2352"]
[TimeControl "180+1"]
[EndTime "15:53:47 PDT"]
[Termination "Kaustubh_Kodihalli won by resignation"]

1. e4 {[%clk 0:03:00.9]} 1... c5 {[%clk 0:02:59.3]} 2. Nf3 {[%clk 0:03:00.9]}
2... d6 {[%clk 0:02:58.8]} 3. d4 {[%clk 0:03:01.3]} 3... cxd4 {[%clk 0:02:59]}
4. Nxd4 {[%clk 0:03:02.2]} 4... Nf6 {[%clk 0:02:59.2]} 5. Nc3 {[%clk 0:03:02]}
5... a6 {[%clk 0:02:59]} 6. f3 {[%clk 0:03:01.8]} 6... e5 {[%clk 0:02:58.6]} 7.
Nb3 {[%clk 0:03:02.1]} 7... Be6 {[%clk 0:02:59.2]} 8. Be3 {[%clk 0:03:02.2]}
8... h5 {[%clk 0:02:58.9]} 9. Qd2 {[%clk 0:03:02.2]} 9... Be7 {[%clk 0:02:57.3]}
10. O-O-O {[%clk 0:03:02.4]} 10... Nbd7 {[%clk 0:02:57.2]} 11. h3 {[%clk
0:03:01.3]} 11... b5 {[%clk 0:02:52.3]} 12. Rg1 {[%clk 0:03:00.6]} 12... h4
{[%clk 0:02:47.9]} 13. Qf2 {[%clk 0:02:57.3]} 13... Nh5 {[%clk 0:02:43.9]} 14.
Kb1 {[%clk 0:02:55.7]} 14... Ng3 {[%clk 0:02:37.6]} 15. Nd5 {[%clk 0:02:53.7]}
15... Nxf1 {[%clk 0:02:29.9]} 16. Rgxf1 {[%clk 0:02:52.1]} 16... Rc8 {[%clk
0:02:26.4]} 17. Nxe7 {[%clk 0:02:51.4]} 17... Qxe7 {[%clk 0:02:25.2]} 18. Qd2
{[%clk 0:02:51]} 18... Bxb3 {[%clk 0:02:14.8]} 19. cxb3 {[%clk 0:02:50]} 19...
Rc6 {[%clk 0:02:14.5]} 20. Qd5 {[%clk 0:02:49.7]} 20... Nb8 {[%clk 0:02:10.8]}
21. Rc1 {[%clk 0:02:45.2]} 21... Rxc1+ {[%clk 0:02:09.5]} 22. Rxc1 {[%clk
0:02:46.1]} 22... O-O {[%clk 0:02:09.2]} 23. a3 {[%clk 0:02:43.2]} 23... Rd8
{[%clk 0:02:07.9]} 24. Bb6 {[%clk 0:02:41.3]} 24... Re8 {[%clk 0:01:54.8]} 25.
Rc7 {[%clk 0:02:40.7]} 25... Qf6 {[%clk 0:01:50.1]} 26. Rb7 {[%clk 0:02:29.5]}
26... Qe6 {[%clk 0:01:42.7]} 27. Qxe6 {[%clk 0:02:25]} 27... fxe6 {[%clk
0:01:42.1]} 28. Bf2 {[%clk 0:02:25.6]} 28... Nc6 {[%clk 0:01:37.2]} 29. Rb6
{[%clk 0:02:23.1]} 29... Na5 {[%clk 0:01:37.2]} 30. Ka2 {[%clk 0:02:17.8]} 30...
Rc8 {[%clk 0:01:21.5]} 31. Rxa6 {[%clk 0:02:15.5]} 31... Nb7 {[%clk 0:01:21.1]}
32. Rb6 {[%clk 0:02:13.8]} 32... Nd8 {[%clk 0:01:20.8]} 33. Rxd6 {[%clk
0:02:13.1]} 33... Nf7 {[%clk 0:01:20.6]} 34. Rxe6 {[%clk 0:02:11.9]} 34... Rc2
{[%clk 0:01:21.2]} 35. Bxh4 {[%clk 0:02:11.1]} 35... Rxg2 {[%clk 0:01:20.9]} 36.
Rb6 {[%clk 0:02:09.4]} 36... Rh2 {[%clk 0:01:16]} 37. Rxb5 {[%clk 0:02:09.2]}
37... Rxh3 {[%clk 0:01:15.6]} 38. Be7 {[%clk 0:02:09.9]} 38... Rxf3 {[%clk
0:01:14.9]} 39. a4 {[%clk 0:02:10.3]} 39... g5 {[%clk 0:01:14.4]} 40. a5 {[%clk
0:02:08.8]} 40... g4 {[%clk 0:01:14.1]} 41. a6 {[%clk 0:02:09.3]} 41... g3
{[%clk 0:00:47.8]} 42. a7 {[%clk 0:02:09.2]} 42... Kh7 {[%clk 0:00:48.6]} 43.
a8=Q {[%clk 0:02:07.6]} 43... g2 {[%clk 0:00:49.5]} 44. Bc5 {[%clk 0:02:07.5]}
44... Rf6 {[%clk 0:00:39.6]} 45. Qd5 {[%clk 0:01:57.5]} 45... Rf1 {[%clk
0:00:37]} 46. Rb7 {[%clk 0:01:55]} 1-0

[Event "Late-Titled-Tuesday-Blitz-June-25-2024"]
[Site "Chess.com"]
[Date "2024.06.25"]
[Round "10"]
[White "rionelG"]
[Black "Piriflillo"]
[Result "0-1"]
[WhiteElo "2390"]
[BlackElo "2517"]
[TimeControl "180+1"]
[EndTime "15:53:52 PDT"]
[Termination "Piriflillo won by checkmate"]

1. e4 {[%clk 0:03:00.9]} 1... d5 {[%clk 0:02:59.7]} 2. exd5 {[%clk 0:03:00.7]}
2... Qxd5 {[%clk 0:03:00.2]} 3. Nc3 {[%clk 0:03:00.2]} 3... Qa5 {[%clk
0:03:00.7]} 4. d4 {[%clk 0:02:59.8]} 4... Nf6 {[%clk 0:03:01.2]} 5. Bc4 {[%clk
0:02:58.3]} 5... c6 {[%clk 0:03:00.4]} 6. Bd2 {[%clk 0:02:56.6]} 6... Bg4 {[%clk
0:03:00.5]} 7. f3 {[%clk 0:02:56.2]} 7... Bc8 {[%clk 0:02:59.4]} 8. Qe2 {[%clk
0:02:52.4]} 8... e6 {[%clk 0:02:57.3]} 9. O-O-O {[%clk 0:02:48.2]} 9... Qc7
{[%clk 0:02:55.7]} 10. g4 {[%clk 0:02:39.4]} 10... Be7 {[%clk 0:02:52]} 11. h4
{[%clk 0:02:34.6]} 11... Nd5 {[%clk 0:02:49.8]} 12. Nh3 {[%clk 0:02:24.6]} 12...
Nd7 {[%clk 0:02:47.4]} 13. g5 {[%clk 0:02:06.8]} 13... a6 {[%clk 0:02:43.2]} 14.
Rhe1 {[%clk 0:02:05.9]} 14... N7b6 {[%clk 0:02:36.2]} 15. Bd3 {[%clk 0:02:04.4]}
15... Nxc3 {[%clk 0:02:35.1]} 16. Bxc3 {[%clk 0:02:02.9]} 16... Nd5 {[%clk
0:02:34.6]} 17. Bd2 {[%clk 0:02:03.4]} 17... b5 {[%clk 0:02:34]} 18. f4 {[%clk
0:01:52.3]} 18... g6 {[%clk 0:02:34.4]} 19. h5 {[%clk 0:01:35.4]} 19... Bd7
{[%clk 0:02:26.4]} 20. Kb1 {[%clk 0:01:33.6]} 20... Qb7 {[%clk 0:02:15.5]} 21.
Be4 {[%clk 0:01:30.9]} 21... b4 {[%clk 0:02:10.1]} 22. Bxd5 {[%clk 0:01:09.6]}
22... cxd5 {[%clk 0:02:07.5]} 23. Qe5 {[%clk 0:01:10]} 23... Rg8 {[%clk
0:02:04.9]} 24. Re3 {[%clk 0:01:04.3]} 24... Qc6 {[%clk 0:02:00.7]} 25. Rb3
{[%clk 0:00:33.9]} 25... Rc8 {[%clk 0:01:56.1]} 26. Rc1 {[%clk 0:00:33.9]} 26...
a5 {[%clk 0:01:56.3]} 27. Qe2 {[%clk 0:00:28.6]} 27... a4 {[%clk 0:01:54]} 28.
Re3 {[%clk 0:00:28.5]} 28... Qb6 {[%clk 0:01:50.5]} 29. c3 {[%clk 0:00:20.8]}
29... Bb5 {[%clk 0:01:46.7]} 30. Qe1 {[%clk 0:00:19.2]} 30... b3 {[%clk
0:01:46.5]} 31. a3 {[%clk 0:00:18.7]} 31... Bc4 {[%clk 0:01:43.5]} 32. hxg6
{[%clk 0:00:17.9]} 32... hxg6 {[%clk 0:01:44.4]} 33. Nf2 {[%clk 0:00:18]} 33...
Bxa3 {[%clk 0:01:41.1]} 34. bxa3 {[%clk 0:00:17.7]} 34... b2 {[%clk 0:01:41.8]}
35. Rc2 {[%clk 0:00:18.3]} 35... Rb8 {[%clk 0:01:39.3]} 36. Nd1 {[%clk
0:00:16.3]} 36... Ba2+ {[%clk 0:01:38.3]} 37. Kxa2 {[%clk 0:00:13.9]} 37...
b1=Q# {[%clk 0:01:39.2]} 0-1